fUSD/lending_fUSD_20251024
["ID","MTS","AMOUNT","RATE_DAILY","PERIOD"]
[392305397,1761322333573,-24520.78,0.00042465,30]
[392305398,1761322333583,-219.12098318,0.00042465,30]
[392305399,1761322333593,-500.0,0.00042465,120]
[392305400,1761322333602,-500.0,0.00042465,30]
[392305401,1761322333611,-597.68,0.00042465,30]
[392305402,1761322333620,-2227.55,0.00042465,30]
[392305403,1761322333629,-500.0,0.00042465,30]
[392305404,1761322333639,-500.0,0.00042465,30]
[392305405,1761322333648,-500.0,0.00042465,30]
[392305406,1761322333657,-500.0,0.00042465,30]
[392305407,1761322333667,-500.0,0.00042465,30]
[392305408,1761322333676,-635.68,0.00042465,30]
[392305409,1761322333686,-518.98,0.00042465,30]
[392305410,1761322333695,-437.96023627,0.00042465,30]
[392305411,1761322333705,-500.0,0.00042465,30]
[392305412,1761322333714,-500.0,0.00042465,30]
[392305413,1761322333723,-500.0,0.00042465,30]
[392305414,1761322333733,-500.0,0.00042465,30]
[392305415,1761322333746,-500.0,0.00042465,30]
[392305416,1761322333756,-500.0,0.00042465,30]
[392305417,1761322333765,-500.0,0.00042465,30]
[392305418,1761322333774,-1049.8,0.00042465,30]
[392305419,1761322333784,-500.0,0.00042465,30]
[392305420,1761322333795,-494.05468095,0.00042465,30]
[392305421,1761322333805,-500.0,0.00042465,30]
[392305422,1761322333815,-678.75,0.00042465,30]
[392305423,1761322333825,-500.0,0.00042465,30]
[392305424,1761322333835,-675.92,0.00042465,30]
[392305425,1761322333844,-500.0,0.00042465,30]
[392305426,1761322333854,-500.0,0.00042465,30]
[392305427,1761322333864,-500.0,0.00042465,30]
[392305428,1761322333873,-500.0,0.00042465,30]
[392305429,1761322333883,-769.84,0.00042465,30]
[392305430,1761322333893,-643.28,0.00042465,30]
[392305431,1761322333904,-772.75,0.00042465,30]
[392305432,1761322333915,-500.0,0.00042465,30]
[392305433,1761322333926,-500.0,0.00042465,30]
[392305434,1761322333936,-500.0,0.00042465,30]
[392305435,1761322333945,-500.0,0.00042465,30]
[392305436,1761322333956,-500.0,0.00042465,30]
[392305437,1761322333965,-500.0,0.00042465,30]
[392305438,1761322333975,-500.0,0.00042465,30]
[392305439,1761322333986,-592.37,0.00042465,30]
[392305440,1761322333995,-500.0,0.00042465,30]
[392305441,1761322334005,-711.48,0.00042465,30]
[392305442,1761322334014,-664.9,0.00042465,30]
[392305443,1761322334024,-500.0,0.00042465,30]
[392305444,1761322334035,-500.0,0.00042465,30]
[392305445,1761322334044,-3293.92,0.00042465,30]
[392305446,1761322334054,-651.98,0.00042465,30]
[392305447,1761322334064,-500.0,0.00042465,30]
[392305448,1761322334074,-555.16,0.00042465,30]
[392305449,1761322334084,-1314.62,0.00042465,30]
[392305450,1761322334095,-500.0,0.00042465,30]
[392305451,1761322334104,-574.28,0.00042465,30]
[392305452,1761322334114,-500.0,0.00042465,30]
[392305453,1761322334124,-500.0,0.00042465,30]
[392305454,1761322334134,-175.34136558,0.00042465,30]
[392305455,1761322334144,-530.89,0.00042465,30]
[392305456,1761322334154,-500.0,0.00042465,30]
[392305457,1761322334163,-500.0,0.00042465,30]
[392305458,1761322334173,-500.0,0.00042465,30]
[392305459,1761322334183,-612.78,0.00042465,30]
[392305460,1761322334193,-500.0,0.00042465,30]
[392305461,1761322334203,-223.83037064,0.00042465,30]
[392305462,1761322334213,-571.0,0.00042465,30]
[392305463,1761322334223,-500.0,0.00042465,30]
[392305464,1761322334233,-830.29,0.00042465,30]
[392305465,1761322334243,-945.03,0.00042465,30]
[392305466,1761322334253,-265.46152602,0.00042465,30]
[392305467,1761322334263,-1033.26,0.00042465,30]
[392305468,1761322334272,-500.0,0.00042465,30]
[392305469,1761322334282,-663.7,0.00042465,30]
[392305470,1761322334292,-1023.75,0.00042465,30]
[392305471,1761322334302,-500.0,0.00042465,30]
[392305472,1761322334311,-500.0,0.00042465,30]
[392305473,1761322334321,-696.08,0.00042465,30]
[392305474,1761322334331,-641.73,0.00042465,30]
[392305475,1761322334340,-500.0,0.00042465,30]
[392305476,1761322334349,-500.0,0.00042465,30]
[392305477,1761322334359,-500.0,0.00042465,30]
[392305478,1761322334369,-579.17,0.00042465,30]
[392305479,1761322334378,-513.45,0.00042465,30]
[392305480,1761322334388,-151.86817962,0.00042465,30]
[392305481,1761322334397,-500.0,0.00042465,30]
[392305482,1761322334407,-669.12,0.00042465,30]
[392305483,1761322334417,-500.0,0.00042465,30]
[392305484,1761322334426,-516.46,0.00042465,30]
[392305485,1761322334436,-501.88,0.00042465,30]
[392305486,1761322334446,-704.55,0.00042465,30]
[392305487,1761322334456,-641.27,0.00042465,30]
[392305488,1761322334465,-793.21,0.00042465,30]
[392305489,1761322334475,-500.0,0.00042465,30]
[392305490,1761322334485,-564.0,0.00042465,30]
[392305491,1761322334495,-681.34,0.00042465,30]
[392305492,1761322334504,-500.0,0.00042465,30]
[392305493,1761322334514,-500.0,0.00042465,30]
[392305494,1761322334523,-500.0,0.00042465,30]
[392305495,1761322334533,-583.52,0.00042465,30]
[392305496,1761322334542,-720.15,0.00042465,30]
[392305497,1761322334552,-500.0,0.00042465,30]
[392305498,1761322334649,-500.0,0.00042465,30]
[392305499,1761322334659,-500.0,0.00042465,30]
[392305500,1761322334669,-500.0,0.00042465,30]
[392305501,1761322334678,-522.17,0.00042465,30]
[392305502,1761322334688,-500.0,0.00042465,30]
[392305503,1761322334697,-553.64,0.00042465,30]
[392305504,1761322334706,-500.0,0.00042465,30]
[392305505,1761322334716,-500.0,0.00042465,30]
[392305506,1761322334725,-500.0,0.00042465,30]
[392305507,1761322334734,-500.0,0.00042465,30]
[392305508,1761322334749,-500.0,0.00042465,30]
[392305509,1761322334759,-500.0,0.00042465,30]
[392305510,1761322334768,-500.0,0.00042465,30]
[392305511,1761322334777,-500.0,0.00042465,30]
[392305512,1761322334788,-500.0,0.00042465,30]
[392305513,1761322334798,-500.0,0.00042465,30]
[392305514,1761322334807,-500.0,0.00042465,30]
[392305515,1761322334820,-500.0,0.00042465,30]
[392305516,1761322334829,-500.0,0.00042465,30]
[392305517,1761322334839,-500.0,0.00042465,30]
[392305518,1761322334849,-500.0,0.00042465,30]
[392305519,1761322334859,-3165.94,0.00042465,30]
[392305520,1761322334869,-577.34,0.00042465,30]
[392305521,1761322334878,-500.0,0.00042465,30]
[392305522,1761322334888,-500.0,0.00042465,30]
[392305523,1761322334898,-500.0,0.00042465,30]
[392305524,1761322334908,-781.42,0.00042465,30]
[392305525,1761322334917,-500.0,0.00042465,30]
[392305526,1761322334927,-592.04,0.00042465,30]
[392305527,1761322334937,-500.0,0.00042465,30]
[392305528,1761322334947,-507.17,0.00042465,30]
[392305529,1761322334956,-500.0,0.00042465,30]
[392305530,1761322334966,-500.0,0.00042465,30]
[392305531,1761322334976,-178.14573261,0.00042465,30]
[392305532,1761322334985,-500.0,0.00042465,30]
[392305533,1761322334995,-500.0,0.00042465,30]
[392305534,1761322335005,-500.0,0.00042465,30]
[392305535,1761322335015,-627.51,0.00042465,30]
[392305536,1761322335024,-500.0,0.00042465,30]
[392305537,1761322335033,-658.05,0.00042465,30]
[392305538,1761322335043,-500.0,0.00042465,30]
[392305539,1761322335052,-500.0,0.00042465,30]
[392305540,1761322335061,-500.0,0.00042465,30]
[392305541,1761322335072,-43111.76,0.00042465,30]
[392305542,1761322335082,-500.0,0.00042465,30]
[392305543,1761322335092,-824.03,0.00042465,30]
[392305544,1761322335102,-572.74,0.00042465,30]
[392305545,1761322335111,-707.49,0.00042465,30]
[392305546,1761322335120,-634.95529792,0.00042465,30]
[392305547,1761322335130,-500.0,0.00042465,2]
[392305548,1761322335140,-500.0,0.00042465,30]
[392305549,1761322335150,-1143.07,0.00042465,30]
[392305550,1761322335159,-560.87,0.00042465,30]
[392305551,1761322335169,-500.0,0.00042465,120]
[392305552,1761322335178,-500.0,0.00042465,30]
[392305553,1761322335188,-500.0,0.00042465,30]
[392305554,1761322335197,-500.0,0.00042465,30]
[392305555,1761322335206,-596.94,0.00042465,30]
[392305556,1761322335215,-654.5,0.00042465,30]
[392305557,1761322335225,-507.69,0.00042465,30]
[392305558,1761322335234,-500.0,0.00042465,30]
[392305559,1761322335243,-976.73,0.00042465,30]
[392305560,1761322335252,-500.0,0.00042465,30]
[392305561,1761322335262,-526.28,0.00042465,30]
[392305562,1761322335271,-766.16,0.00042465,30]
[392305563,1761322335280,-500.0,0.00042465,30]
[392305564,1761322335290,-500.0,0.00042465,30]
[392305565,1761322335301,-500.0,0.00042465,30]
[392305566,1761322335310,-500.0,0.00042465,30]
[392305567,1761322335320,-500.0,0.00042465,30]
[392305568,1761322335329,-502.30886947,0.00042465,5]
[392305569,1761322335339,-500.0,0.00042465,30]
[392305570,1761322335348,-500.0,0.00042465,30]
[392305571,1761322335358,-598.92,0.00042465,30]
[392305572,1761322335368,-843.03,0.00042465,30]
[392305573,1761322335377,-500.0,0.00042465,30]
[392305574,1761322335387,-547.11,0.00042465,30]
[392305575,1761322335397,-905.81,0.00042465,30]
[392305576,1761322335407,-649.83,0.00042465,30]
[392305577,1761322335416,-605.46,0.00042465,30]
[392305578,1761322335426,-500.0,0.00042465,30]
[392305579,1761322335435,-500.0,0.00042465,30]
[392305580,1761322335445,-500.0,0.00042465,30]
[392305581,1761322335455,-500.0,0.00042465,30]
[392305582,1761322335465,-500.0,0.00042465,30]
[392305583,1761322335475,-675.1,0.00042465,30]
[392305584,1761322335484,-500.0,0.00042465,30]
[392305585,1761322335494,-500.0,0.00042465,30]
[392305586,1761322335505,-216.7931332,0.00042465,30]
[392305587,1761322335515,-500.0,0.00042465,30]
[392305588,1761322335524,-818.3,0.00042465,30]
[392305589,1761322335534,-500.0,0.00042465,30]
[392305590,1761322335543,-500.0,0.00042465,30]
[392305591,1761322335553,-500.0,0.00042465,30]
[392305592,1761322335562,-500.0,0.00042465,30]
[392305593,1761322335572,-289.83270655,0.00042465,30]
[392305594,1761322335582,-554.2,0.00042465,30]
[392305595,1761322335592,-500.0,0.00042465,30]
[392305596,1761322335603,-851.07,0.00042465,30]
[392305597,1761322335615,-500.0,0.00042465,30]
[392305598,1761322335626,-500.0,0.00042465,30]
[392305599,1761322335637,-500.0,0.00042465,30]
[392305600,1761322335646,-634.48,0.00042465,30]
[392305601,1761322335656,-500.0,0.00042465,30]
[392305602,1761322335666,-943.35,0.00042465,30]
[392305603,1761322335675,-500.0,0.00042465,30]
[392305604,1761322335686,-185.72496502,0.00042465,2]
[392305605,1761322335695,-500.0,0.00042465,30]
[392305606,1761322335705,-500.0,0.00042465,30]
[392305607,1761322335715,-500.0,0.00042465,30]
[392305608,1761322335724,-500.0,0.00042465,30]
[392305609,1761322335734,-726.59,0.00042465,30]
[392305610,1761322335748,-500.0,0.00042465,30]
[392305611,1761322335758,-500.0,0.00042465,30]
[392305612,1761322335768,-500.0,0.00042465,30]
[392305613,1761322335778,-530.52,0.00042465,30]
[392305614,1761322335790,-554.24,0.00042465,30]
[392305615,1761322335799,-500.0,0.00042465,30]
[392305616,1761322335811,-500.0,0.00042465,30]
[392305617,1761322335821,-534.6,0.00042465,30]
[392305618,1761322335831,-500.0,0.00042465,30]
[392305619,1761322335841,-703.61,0.00042465,30]
[392305620,1761322335850,-500.0,0.00042465,30]
[392305621,1761322335860,-619.86,0.00042465,30]
[392305622,1761322335870,-500.0,0.00042465,30]
[392305623,1761322335879,-500.0,0.00042465,30]
[392305624,1761322335889,-540.26,0.00042465,30]
[392305625,1761322335899,-506.89,0.00042465,30]
[392305626,1761322335909,-500.0,0.00042465,30]
[392305627,1761322335918,-500.0,0.00042465,30]
[392305628,1761322335928,-414.69448154,0.00042465,30]
[392305629,1761322335937,-500.0,0.00042465,30]
[392305630,1761322335947,-500.0,0.00042465,30]
[392305631,1761322335957,-500.0,0.00042465,30]
[392305632,1761322335967,-500.0,0.00042465,30]
[392305633,1761322335976,-500.0,0.00042465,30]
[392305634,1761322335987,-500.0,0.00042465,30]
[392305635,1761322335997,-730.1,0.00042465,30]
[392305636,1761322336007,-500.0,0.00042465,30]
[392305637,1761322336017,-500.0,0.00042465,30]
[392305638,1761322336026,-500.0,0.00042465,30]
[392305639,1761322336037,-500.0,0.00042465,30]
[392305640,1761322336047,-500.0,0.00042465,30]
[392305641,1761322336056,-500.0,0.00042465,30]
[392305642,1761322336065,-581.74,0.00042465,30]
[392305643,1761322336075,-500.0,0.00042465,30]
[392305644,1761322336083,-500.0,0.00042465,30]
[392305645,1761322336092,-604.04,0.00042465,30]
[392305646,1761322336101,-500.0,0.00042465,30]
[392305647,1761322336111,-611.69,0.00042465,30]
[392305648,1761322336120,-500.0,0.00042465,30]
[392305649,1761322336132,-500.0,0.00042465,30]
[392305650,1761322336142,-152.0513097,0.00042465,30]
[392305651,1761322336154,-513.05,0.00042465,30]
[392305652,1761322336164,-696.18,0.00042465,30]
[392305653,1761322336174,-500.0,0.00042465,30]
[392305654,1761322336184,-1807.7,0.00042465,30]
[392305655,1761322336193,-500.0,0.00042465,30]
[392305656,1761322336202,-500.0,0.00042465,2]
[392305657,1761322336212,-500.0,0.00042465,30]
[392305658,1761322336221,-500.0,0.00042465,30]
[392305659,1761322336230,-500.0,0.00042465,30]
[392305660,1761322336240,-1380.28,0.00042465,30]
[392305661,1761322336249,-606.24,0.00042465,30]
[392305662,1761322336259,-300.0,0.00042465,2]
[392305663,1761322336268,-783.69,0.00042465,30]
[392305664,1761322336278,-500.0,0.00042465,30]
[392305665,1761322336289,-806.84,0.00042465,30]
[392305666,1761322336298,-419.87078725,0.00042465,30]
[392305667,1761322336308,-500.0,0.00042465,30]
[392305668,1761322336317,-2341.55,0.00042465,30]
[392305669,1761322336327,-500.0,0.00042465,30]
[392305670,1761322336336,-500.0,0.00042465,30]
[392305671,1761322336346,-203.51271747,0.00042465,30]
[392305672,1761322336356,-500.0,0.00042465,30]
[392305673,1761322336366,-500.0,0.00042465,30]
[392305674,1761322336376,-500.0,0.00042465,30]
[392305675,1761322336386,-716.52,0.00042465,30]
[392305676,1761322336396,-660.17,0.00042465,30]
[392305677,1761322336405,-531.64,0.00042465,30]
[392305678,1761322336415,-500.0,0.00042465,30]
[392305679,1761322336424,-538.15,0.00042465,30]
[392305680,1761322336435,-3345.4,0.00042471,2]
[392305681,1761322336446,-713.0,0.000425,120]
[392305682,1761322336456,-5822.21,0.000425,30]
[392305683,1761322336465,-45191.64,0.000425,14]
[392305684,1761322336475,-4873.67,0.000425,14]
[392305685,1761322336485,-11110.54,0.000425,14]
[392305686,1761322336494,-903.03,0.0004251,2]
[392305687,1761322336504,-1771.53,0.00042554,14]
[392305688,1761322336512,-2300.0,0.00042568,60]
[392305689,1761322336522,-600.0,0.00042568,60]
[392305690,1761322336532,-800.0,0.00042568,60]
[392305691,1761322336542,-1192.71315387,0.00042592,120]
[392305692,1761322336552,-515.064817,0.00042594,120]
[392305693,1761322336562,-2074.640102,0.00042594,120]
[392305694,1761322336572,-526.582468,0.00042594,120]
[392305695,1761322336581,-1983.43,0.00042658,2]
[392305696,1761322336591,-600.0,0.0004266,120]
[392305697,1761322336600,-364.60994939,0.00042689,2]
[392305698,1761322336610,-168.79,0.00042696,60]
[392305699,1761322336619,-644.61516002,0.00042711,28]
[392305700,1761322336629,-1211.96,0.00042723,2]
[392305701,1761322336639,-234.859181,0.00042739,30]
[392305702,1761322336648,-808.712269,0.00042739,30]
[392305703,1761322336657,-277.693017,0.00042739,30]
[392305704,1761322336667,-500.0,0.00042739,30]
[392305705,1761322336676,-500.0,0.00042739,30]
[392305706,1761322336685,-500.0,0.00042739,30]
[392305707,1761322336695,-500.0,0.00042739,30]
[392305708,1761322336704,-622.47,0.00042739,30]
[392305709,1761322336714,-500.0,0.00042739,30]
[392305710,1761322336723,-509.02,0.00042739,30]
[392305711,1761322336732,-516.35,0.00042739,30]
[392305712,1761322336745,-500.0,0.00042739,30]
[392305713,1761322336755,-825.82,0.00042739,30]
[392305714,1761322336764,-500.0,0.00042739,30]
[392305715,1761322336773,-500.0,0.00042739,30]
[392305716,1761322336783,-500.0,0.00042739,30]
[392305717,1761322336792,-500.0,0.00042739,30]
[392305718,1761322336802,-500.0,0.00042739,30]
[392305719,1761322336811,-500.0,0.00042739,30]
[392305720,1761322336823,-500.0,0.00042739,30]
[392305721,1761322336833,-607.61,0.00042739,30]
[392305722,1761322336843,-530.46700135,0.00042739,30]
[392305723,1761322336853,-500.0,0.00042739,30]
[392305724,1761322336864,-500.0,0.00042739,30]
[392305725,1761322336873,-510.24,0.00042739,30]
[392305726,1761322336882,-500.0,0.00042739,30]
[392305727,1761322336892,-500.0,0.00042739,30]
[392305728,1761322336901,-500.0,0.00042739,30]
[392305729,1761322336919,-500.0,0.00042739,30]
[392305730,1761322336928,-401.58174822,0.00042739,30]
[392305731,1761322336939,-500.0,0.00042739,30]
[392305732,1761322336948,-507.83,0.00042739,30]
[392305733,1761322336958,-500.0,0.00042739,30]
[392305734,1761322336968,-500.0,0.00042739,30]
[392305735,1761322336978,-500.0,0.00042739,30]
[392305736,1761322336987,-644.18,0.00042739,30]
[392305737,1761322336997,-500.0,0.00042739,30]
[392305738,1761322337008,-500.0,0.00042739,30]
[392305739,1761322337018,-626.86,0.00042739,30]
[392305740,1761322337038,-769.96,0.00042739,30]
[392305741,1761322337048,-500.0,0.00042739,30]
[392305742,1761322337058,-538.58,0.00042739,30]
[392305743,1761322337068,-500.0,0.00042739,30]
[392305744,1761322337078,-500.0,0.00042739,30]
[392305745,1761322337087,-500.0,0.00042739,30]
[392305746,1761322337097,-500.0,0.00042739,30]
[392305747,1761322337106,-500.0,0.00042739,30]
[392305748,1761322337116,-500.0,0.00042739,30]
[392305749,1761322337126,-801.91,0.00042739,30]
[392305750,1761322337136,-500.0,0.00042739,30]
[392305751,1761322337146,-500.0,0.00042739,30]
[392305752,1761322337156,-515.08,0.00042739,30]
[392305753,1761322337165,-627.53,0.00042739,30]
[392305754,1761322337174,-631.49,0.00042739,30]
[392305755,1761322337184,-500.0,0.00042739,30]
[392305756,1761322337193,-500.0,0.00042739,30]
[392305757,1761322337202,-858.53,0.00042739,30]
[392305758,1761322337211,-505.13649657,0.00042739,30]
[392305759,1761322337222,-500.0,0.00042739,30]
[392305760,1761322337231,-500.0,0.00042739,2]
[392305761,1761322337240,-500.0,0.00042739,30]
[392305762,1761322337249,-500.0,0.00042739,30]
[392305763,1761322337258,-500.0,0.00042739,30]
[392305764,1761322337267,-500.0,0.00042739,30]
[392305765,1761322337276,-500.0,0.00042739,30]
[392305766,1761322337287,-635.93,0.00042739,30]
[392305767,1761322337296,-500.0,0.00042739,30]
[392305768,1761322337305,-500.0,0.00042739,30]
[392305769,1761322337314,-500.0,0.00042739,30]
[392305770,1761322337323,-741.25,0.00042739,30]
[392305771,1761322337332,-501.03031858,0.00042739,30]
[392305772,1761322337341,-692.25,0.00042739,30]
[392305773,1761322337350,-328.05050615,0.00042739,30]
[392305774,1761322337360,-633.45,0.00042739,30]
[392305775,1761322337368,-500.0,0.00042739,30]
[392305776,1761322337377,-500.0,0.00042739,30]
[392305777,1761322337387,-500.0,0.00042739,30]
[392305778,1761322337397,-682.78,0.00042739,30]
[392305779,1761322337406,-500.0,0.00042739,30]
[392305780,1761322337414,-500.0,0.00042739,30]
[392305781,1761322337423,-500.0,0.00042739,30]
[392305782,1761322337432,-898.81,0.00042739,30]
[392305783,1761322337442,-700.85,0.00042739,30]
[392305784,1761322337450,-500.0,0.00042739,30]
[392305785,1761322337459,-504.24400961,0.00042739,30]
[392305786,1761322337469,-500.0,0.00042739,30]
[392305787,1761322337478,-500.0,0.00042739,30]
[392305788,1761322337487,-380.17758956,0.00042739,30]
[392305789,1761322337496,-663.01,0.00042739,30]
[392305790,1761322337505,-500.0,0.00042739,30]
[392305791,1761322337515,-709.15,0.00042739,30]
[392305792,1761322337525,-500.0,0.00042739,30]
[392305793,1761322337534,-174.69307043,0.00042739,30]
[392305794,1761322337543,-707.03,0.00042739,30]
[392305795,1761322337553,-829.57,0.00042739,30]
[392305796,1761322337563,-952.31,0.00042739,30]
[392305797,1761322337573,-500.0,0.00042739,30]
[392305798,1761322337583,-500.0,0.00042739,30]
[392305799,1761322337594,-166.0828882,0.00042739,30]
[392305800,1761322337604,-527.2,0.00042739,30]
[392305801,1761322337613,-500.0,0.00042739,30]
[392305802,1761322337622,-500.0,0.00042739,30]
[392305803,1761322337631,-500.0,0.00042739,30]
[392305804,1761322337641,-500.0,0.00042739,30]
[392305805,1761322337650,-771.78,0.00042739,30]
[392305806,1761322337660,-706.52,0.00042739,30]
[392305807,1761322337670,-768.08,0.00042739,30]
[392305808,1761322337680,-599.68,0.00042739,30]
[392305809,1761322337691,-500.0,0.00042739,30]
[392305810,1761322337700,-500.0,0.00042739,30]
[392305811,1761322337710,-613.19,0.00042739,30]
[392305812,1761322337722,-613.95,0.00042739,30]
[392305813,1761322337733,-500.0,0.00042739,30]
[392305814,1761322337746,-500.0,0.00042739,30]
[392305815,1761322337757,-627.71,0.00042739,30]
[392305816,1761322337767,-500.0,0.00042739,30]
[392305817,1761322337777,-662.69,0.00042739,30]
[392305818,1761322337787,-526.63,0.00042739,30]
[392305819,1761322337796,-500.0,0.00042739,30]
[392305820,1761322337805,-500.0,0.00042739,30]
[392305821,1761322337816,-500.0,0.00042739,30]
[392305822,1761322337826,-500.0,0.00042739,30]
[392305823,1761322337835,-1090.4,0.00042739,30]
[392305824,1761322337844,-500.0,0.00042739,30]
[392305825,1761322337854,-500.65,0.00042739,30]
[392305826,1761322337863,-500.0,0.00042739,30]
[392305827,1761322337872,-500.0,0.00042739,30]
[392305828,1761322337882,-624.06,0.00042739,30]
[392305829,1761322337892,-755.72,0.00042739,30]
[392305830,1761322337902,-500.0,0.00042739,30]
[392305831,1761322337912,-500.0,0.00042739,30]
[392305832,1761322337922,-500.0,0.00042739,30]
[392305833,1761322337932,-740.41,0.00042739,30]
[392305834,1761322337942,-500.0,0.00042739,30]
[392305835,1761322337952,-500.0,0.00042739,30]
[392305836,1761322337962,-500.0,0.00042739,30]
[392305837,1761322337972,-500.0,0.00042739,30]
[392305838,1761322337981,-500.0,0.00042739,30]
[392305839,1761322337991,-500.0,0.00042739,30]
[392305840,1761322338001,-600.0,0.00042739,30]
[392305841,1761322338011,-500.0,0.00042739,30]
[392305842,1761322338021,-500.0,0.00042739,30]
[392305843,1761322338031,-500.0,0.00042739,30]
[392305844,1761322338042,-500.0,0.00042739,30]
[392305845,1761322338053,-500.0,0.00042739,30]
[392305846,1761322338063,-500.0,0.00042739,30]
[392305847,1761322338074,-500.0,0.00042739,30]
[392305848,1761322338084,-464.15734,0.00042739,30]
[392305849,1761322338100,-1136.13,0.00042739,30]
[392305850,1761322338115,-500.0,0.00042739,30]
[392305851,1761322338125,-549.55,0.00042739,30]
[392305852,1761322338135,-500.0,0.00042739,30]
[392305853,1761322338145,-638.56,0.00042739,30]
[392305854,1761322338155,-686.03,0.00042739,30]
[392305855,1761322338164,-500.0,0.00042739,30]
[392305856,1761322338174,-706.79,0.00042739,30]
[392305857,1761322338184,-500.0,0.00042739,30]
[392305858,1761322338194,-500.0,0.00042739,30]
[392305859,1761322338204,-382.666022,0.00042739,30]
[392305860,1761322338214,-500.0,0.00042739,30]
[392305861,1761322338224,-500.0,0.00042739,30]
[392305862,1761322338234,-500.0,0.00042739,30]
[392305863,1761322338244,-602.64,0.00042739,30]
[392305864,1761322338255,-586.4,0.00042739,30]
[392305865,1761322338265,-547.9,0.00042739,30]
[392305866,1761322338275,-566.32,0.00042739,30]
[392305867,1761322338285,-500.0,0.00042739,30]
[392305868,1761322338295,-2351.88,0.00042739,2]
[392305869,1761322338305,-218.46556814,0.00042739,30]
[392305870,1761322338315,-500.0,0.00042739,30]
[392305871,1761322338324,-500.0,0.00042739,30]
[392305872,1761322338335,-506.73,0.00042739,30]
[392305873,1761322338345,-500.0,0.00042739,30]
[392305874,1761322338355,-398.28283985,0.00042739,30]
[392305875,1761322338365,-500.0,0.00042739,30]
[392305876,1761322338375,-600.0,0.00042739,30]
[392305877,1761322338385,-500.0,0.00042739,30]
[392305878,1761322338395,-500.0,0.00042739,30]
[392305879,1761322338405,-500.0,0.00042739,30]
[392305880,1761322338415,-772.81,0.00042739,30]
[392305881,1761322338425,-670.73,0.00042739,30]
[392305882,1761322338435,-500.0,0.00042739,30]
[392305883,1761322338445,-500.0,0.00042739,30]
[392305884,1761322338455,-582.62644553,0.00042739,30]
[392305885,1761322338465,-500.0,0.00042739,30]
[392305886,1761322338475,-500.0,0.00042739,30]
[392305887,1761322338485,-500.0,0.00042739,30]
[392305888,1761322338495,-850.65,0.00042739,30]
[392305889,1761322338505,-500.0,0.00042739,30]
[392305890,1761322338515,-500.0,0.00042739,30]
[392305891,1761322338525,-507.25,0.00042739,30]
[392305892,1761322338535,-500.0,0.00042739,30]
[392305893,1761322338546,-784.75,0.00042739,30]
[392305894,1761322338556,-500.0,0.00042739,30]
[392305895,1761322338567,-500.0,0.00042739,30]
[392305896,1761322338577,-500.0,0.00042739,30]